bitfinex/quotes_ETHUSD_20250220
["timestamp","ask_amount","ask_price","bid_price","bid_amount"]
[1740078256651,0.7659,2742.4,2742.1,0.55]
[1740078257052,4.41234,2742.4,2741.8,0.55]
[1740078257249,0.7659,2742.4,2741.9,3.64698]
[1740078257448,0.7659,2742.4,2741.9,7.294]
[1740078257973,0.7659,2742.4,2741.9,3.64698]
[1740078258278,0.7659,2742.4,2742.1,0.55]
[1740078258479,9.00625,2742.6,2742.1,4.19683]
[1740078258646,11.055773,2742.6,2742.1,4.19683]
[1740078258846,11.055773,2742.6,2742.1,0.55]
[1740078260181,7.409523,2742.6,2741.9,3.64708]
[1740078260381,3.64639,2742.5,2741.9,7.29412]
[1740078260583,7.2928,2742.5,2741.9,3.64704]
[1740078260783,3.64639,2742.5,2741.9,3.64704]
[1740078261279,6.1443,2742.6,2742.1,0.55]
[1740078261445,6.1443,2742.6,2742.1,4.1968]
[1740078261642,7.123342,2742.6,2742.1,4.1968]
[1740078262148,3.64637,2742.5,2742.1,0.55]
[1740078262442,7.123342,2742.6,2742.1,0.55]
[1740078263377,7.123342,2742.6,2742.2,3.6467]
[1740078263709,6.1443,2742.6,2742.3,4.19648]
[1740078263885,5.36,2742.6,2742.3,4.19648]
[1740078264682,5.36,2742.6,2742.4,3.64636]
[1740078264979,6.1302,2742.8,2742.4,0.55]
[1740078266379,6.1302,2742.8,2741.7,3.64737]
[1740078266380,0.7932,2742.4,2741.7,3.64737]
[1740078266581,0.443951,2742.3,2741.8,3.64719]
[1740078266787,5.36,2742.4,2741.9,3.42114038]
[1740078266952,5.36,2742.4,2742.2,3.6466]
[1740078268389,5.36,2742.4,2742.1,3.64684]
[1740078268891,0.7973,2742.2,2741.7,0.829]
[1740078269088,0.7973,2742.2,2741.6,10.71600038]
[1740078269250,1.777693,2742.2,2741.6,3.64737]
[1740078269456,3.647,2742.0,2741.5,3.6476]
[1740078269771,3.647,2742.0,2741.5,3.64758]
[1740078269974,3.64732,2741.8,2741.2,3.64792]
[1740078270187,4.46305,2741.6,2741.1,4.42896]
[1740078270415,0.8155,2741.6,2741.2,3.64802]
[1740078271227,0.8155,2741.6,2740.9,3.64842]
[1740078271684,3.64763,2741.5,2741.0,3.64829]
[1740078272057,3.64763,2741.5,2740.8,4.43207]
[1740078272259,4.4951782,2741.5,2740.9,3.64841]
[1740078272660,3.6478,2741.4,2740.9,3.64841]
[1740078272861,7.29566,2741.4,2740.7,6.64857]
[1740078273061,0.7603,2741.2,2740.7,6.64857]
[1740078273699,4.40833,2741.2,2740.7,3.0]
[1740078273997,4.40833,2741.2,2740.5,3.64889]
[1740078273998,7.29643,2741.1,2740.5,3.64889]
[1740078274295,3.64817,2741.1,2740.5,3.64889]
[1740078274762,3.64817,2741.1,2740.5,7.29779]
[1740078274967,3.64817,2741.1,2740.5,7.29778]
[1740078275311,3.64817,2741.1,2740.6,3.64882]
[1740078275801,10.573971,2741.2,2740.7,3.64862]
[1740078276300,10.573971,2741.2,2740.5,3.64896]
[1740078276301,6.925911,2741.2,2740.4,3.7615]
[1740078276600,6.925911,2741.2,2740.7,3.64863]
[1740078276800,5.36,2741.2,2740.9,3.42114038]
[1740078277000,5.36,2741.2,2741.1,3.64817]
[1740078277205,0.7526,2741.7,2741.2,3.64801]
[1740078277413,0.7526,2741.7,2741.3,3.64785]
[1740078278208,0.7526,2741.7,2741.2,3.64801]
[1740078278597,0.7526,2741.7,2741.2,7.29598]
[1740078278770,0.7526,2741.7,2741.3,3.64789]
[1740078278972,5.36,2741.8,2741.2,3.42114038]
[1740078279302,9.00724,2741.8,2741.3,3.64788]
[1740078279610,9.00726,2741.8,2741.3,3.64788]
[1740078279993,5.36,2741.8,2741.4,3.64775]
[1740078280174,5.36,2741.8,2741.7,3.64737]
[1740078280514,5.36,2741.8,2741.6,3.64743]
[1740078280813,5.36,2741.8,2741.7,3.64737]
[1740078282410,6.1127,2742.1,2741.7,3.64737]
[1740078283372,9.75961,2742.1,2741.5,3.64763]
[1740078283778,9.75961,2742.1,2741.6,3.6475]
[1740078284892,9.75961,2742.1,2741.5,7.2952]
[1740078285213,9.75961,2742.1,2741.6,3.6475]
[1740078285418,6.1127,2742.1,2741.7,3.64736]
[1740078286313,0.7527,2742.1,2741.7,3.64736]
[1740078286503,0.7527,2742.1,2741.8,3.64712]
[1740078287717,0.7527,2742.1,2741.9,3.64706]
[1740078287913,5.36,2742.2,2741.9,3.64706]
[1740078288508,5.36,2742.2,2741.8,3.64712]
[1740078289182,5.36,2742.2,2741.9,3.64708]
[1740078289384,5.36,2742.2,2741.8,3.64712]
[1740078289582,5.36,2742.2,2741.8,7.29427]
[1740078290127,5.36,2742.2,2741.8,3.64712]
[1740078291243,9.00664,2742.3,2741.8,3.64712]
[1740078291733,9.990344,2742.3,2741.8,3.64712]
[1740078292221,9.990344,2742.3,2741.8,7.29428]
[1740078292402,9.990344,2742.3,2741.8,3.64712]
[1740078294230,6.343704,2742.3,2741.8,3.64712]
[1740078294432,9.990284,2742.3,2741.6,3.6475]
[1740078294792,9.990284,2742.3,2741.8,3.64722]
[1740078295096,1.0820684,2742.2,2741.7,3.64736]
[1740078295288,1.0820684,2742.2,2741.5,3.42114038]
[1740078295493,4.4627,2742.1,2741.4,4.40246]
[1740078296030,4.4627,2742.1,2741.6,3.64749]
[1740078296223,4.4627,2742.1,2741.6,7.29498]
[1740078296529,4.4627,2742.1,2741.6,7.29493]
[1740078296918,4.4627,2742.1,2741.6,3.64744]
[1740078297114,5.91785984,2742.1,2741.6,3.64744]
[1740078297316,5.91785984,2742.1,2741.5,3.64761]
[1740078297537,5.91785984,2742.1,2741.6,3.64747]
[1740078298642,3.64698,2742.0,2741.5,3.64761]
[1740078300251,3.64698,2742.0,2741.5,3.64757]
[1740078301453,5.91780984,2742.1,2741.5,3.64757]
[1740078301656,2.27095984,2742.1,2741.5,3.64757]
[1740078301819,5.91781984,2742.1,2741.6,3.64744]
[1740078302734,0.8158,2742.1,2741.5,7.06875038]
[1740078302939,0.8305,2742.3,2742.0,3.64688]
[1740078303338,0.8305,2742.3,2741.8,3.64722]
[1740078303541,0.8305,2742.3,2741.9,3.64709]
[1740078303926,5.289413,2742.3,2741.8,3.64722]
[1740078304130,5.289413,2742.3,2741.7,3.64727]
[1740078304333,4.47708,2742.3,2741.8,3.64713]
[1740078304523,0.8305,2742.3,2741.8,3.64715]
[1740078305352,4.4771,2742.3,2741.7,3.64727]
[1740078305534,3.64686,2742.1,2741.6,6.64749]
[1740078306221,9.00671,2742.2,2741.7,3.64728]
[1740078306621,5.36,2742.2,2741.8,3.64721]
[1740078307319,5.36,2742.2,2741.9,3.6471]
[1740078307756,5.36,2742.2,2741.9,3.64709]
[1740078308118,5.36,2742.2,2742.1,3.64684]
[1740078309231,3.64606,2742.7,2742.1,3.97114038]
[1740078309232,0.7789,2742.7,2742.1,3.97114038]
[1740078309436,0.7789,2742.7,2742.4,3.64633]
[1740078310459,0.7789,2742.7,2742.3,3.64656]
[1740078310633,0.7789,2742.7,2742.2,0.55]
[1740078310838,0.7789,2742.7,2742.3,3.64657]
[1740078311433,0.7789,2742.7,2742.3,3.6465]
[1740078311834,0.7789,2742.7,2742.3,7.29297]
[1740078312041,0.7789,2742.7,2742.4,3.64642]
[1740078313058,0.7789,2742.7,2742.5,3.64629]
[1740078313263,6.1846,2743.0,2742.5,4.802119]
[1740078313450,6.1846,2743.0,2742.6,3.64606]
[1740078313622,6.1846,2743.0,2742.5,4.43749]
[1740078313828,6.1846,2743.0,2742.8,3.64583]
[1740078313829,5.36,2743.0,2742.8,3.64583]
[1740078314027,13.79538217,2743.2,2742.7,3.64595]
[1740078314228,15.53943939,2743.2,2742.7,3.64595]
[1740078314885,10.15000217,2743.2,2742.7,3.42114038]
[1740078315083,10.15000217,2743.2,2742.9,3.64574]
[1740078315375,10.15000217,2743.2,2742.6,0.55]
[1740078315545,13.79545217,2743.2,2742.6,4.19607]
[1740078315746,13.79545217,2743.2,2742.7,3.64603]
[1740078316069,15.53953239,2743.2,2742.7,3.64603]
[1740078316959,3.64573,2743.0,2742.4,3.42114038]
[1740078317160,3.64573,2743.0,2742.4,3.64642]
[1740078317161,4.46924,2742.9,2742.4,3.64642]
[1740078317467,3.646,2742.8,2742.3,3.64657]
[1740078317632,4.46924,2742.9,2742.3,3.64646]
[1740078317963,4.46924,2742.9,2742.3,7.29294]
[1740078318130,5.816725,2742.9,2742.2,4.46169]
[1740078318325,4.47195,2742.6,2741.9,3.64701]
[1740078318558,3.64639,2742.5,2741.9,3.6471]
[1740078318865,3.64639,2742.5,2742.0,3.64697]
[1740078319032,3.64639,2742.5,2741.9,3.6471]
[1740078319229,3.64639,2742.5,2741.9,3.64702]
[1740078319562,3.64639,2742.5,2741.9,3.64701]
[1740078319860,3.64639,2742.5,2742.0,3.64695]
[1740078320278,6.1857,2742.6,2742.1,3.64672]
[1740078320449,6.1857,2742.6,2742.1,4.24094038]
[1740078320654,6.1857,2742.6,2742.3,3.64649]
[1740078320849,6.1857,2742.6,2742.2,3.6467]
[1740078321576,6.1857,2742.6,2742.3,3.64655]
[1740078321980,5.36,2742.6,2742.4,3.64633]
[1740078322179,5.36,2742.6,2742.5,3.6463]
[1740078322481,5.36,2742.6,2742.3,3.64655]
[1740078322688,5.36,2742.6,2742.3,3.64652]
[1740078322891,5.36,2742.6,2742.3,3.64644]
[1740078323389,5.36,2742.6,2742.4,3.64639]
[1740078323775,5.36,2742.6,2742.3,3.64644]
[1740078323975,0.8251,2742.8,2742.3,3.64644]
[1740078324551,5.36,2742.9,2742.4,3.64636]
[1740078324774,6.340835,2742.9,2742.4,3.64636]
[1740078326390,0.8297,2742.8,2742.2,7.84326]
[1740078326559,0.8297,2742.8,2742.2,4.19662]
[1740078327368,0.8297,2742.8,2742.2,7.84324]
[1740078327564,0.8297,2742.8,2742.3,3.64646]
[1740078329491,0.8297,2742.8,2742.4,3.64643]
[1740078329990,0.8297,2742.8,2742.3,3.64657]
[1740078330298,0.8158,2742.6,2741.8,0.7981]
[1740078330461,4.46226,2742.4,2741.8,3.64716]
[1740078330661,4.46244,2742.3,2741.6,7.2948]
[1740078330858,6.1758,2742.3,2741.6,3.64739]
[1740078331161,0.8158,2742.1,2741.7,3.64736]
[1740078333193,6.1758,2742.1,2741.5,3.6476]
[1740078333396,10.804971,2742.1,2741.5,3.6476]
[1740078333997,0.7816,2741.7,2741.1,3.64808]
[1740078334161,3.64755,2741.6,2740.9,4.37458393]
[1740078334355,0.7818,2741.5,2740.9,8.52011443]
[1740078334585,4.42943,2741.5,2740.9,4.87175443]
[1740078335876,4.42943,2741.5,2740.9,8.52011443]
[1740078336112,4.42943,2741.5,2740.9,4.87175443]
[1740078336908,0.7818,2741.5,2741.0,3.64828]
[1740078337208,0.7818,2741.5,2740.9,4.87175443]
[1740078337412,0.7818,2741.5,2740.9,3.64836]
[1740078337976,4.42946,2741.5,2740.9,3.64836]
[1740078338185,4.43727,2741.3,2740.7,3.64862]
[1740078338386,0.7548,2741.1,2740.6,3.64882]
[1740078338688,0.7548,2741.1,2740.4,1.21278013]
[1740078338689,9.76298,2741.1,2740.4,1.21278013]
[1740078338999,9.76298,2741.1,2740.1,3.42114038]
[1740078339000,0.7548,2740.9,2740.1,3.42114038]
[1740078339208,0.7548,2740.9,2740.2,3.64934]
[1740078339516,3.64857,2740.8,2740.2,3.64934]
[1740078339716,6.1148,2740.9,2740.2,3.64925]
[1740078339901,6.1148,2740.9,2740.3,3.64913]
[1740078340087,6.8239098,2740.9,2740.3,3.64913]
[1740078340693,6.8239098,2740.9,2740.1,3.42114038]
[1740078340694,6.8239098,2740.9,2740.4,3.649]
[1740078340898,6.8239098,2740.9,2740.2,3.64927]
[1740078341389,6.1148,2740.9,2740.4,3.64897]
[1740078341589,6.1148,2740.9,2740.4,7.07022038]
[1740078341995,6.1148,2740.9,2740.5,3.64896]
[1740078342216,6.1148,2740.9,2740.7,3.64857]
[1740078342580,6.1148,2740.9,2740.6,3.64872]
[1740078342819,6.1148,2740.9,2740.6,7.29748]
[1740078342999,6.1148,2740.9,2740.6,3.64872]
[1740078343192,6.1148,2740.9,2740.6,3.64871]
[1740078343403,6.1148,2740.9,2740.6,4.35569504]
[1740078343604,5.36,2740.9,2740.8,3.64856]
[1740078344821,0.7898,2741.1,2740.8,3.64856]
[1740078345519,0.7898,2741.1,2740.7,3.64862]
[1740078348095,0.7898,2741.1,2740.8,3.64854]
[1740078349121,0.7898,2741.1,2740.7,3.64869]
[1740078349990,0.7898,2741.1,2740.8,3.64854]
[1740078350585,0.7898,2741.1,2740.9,3.64834]
[1740078350807,0.7898,2741.1,2740.8,3.64847]
[1740078351629,0.7898,2741.1,2740.5,0.7717]
[1740078351630,0.7898,2741.1,2740.9,3.64843]
[1740078351789,0.7898,2741.1,2740.7,3.64868]
[1740078351986,0.7898,2741.1,2740.7,3.6486]
[1740078352390,0.7898,2741.1,2740.7,3.6487]
[1740078352845,5.36,2741.3,2740.9,3.64843]
[1740078353008,0.7593,2741.4,2740.7,4.22806338]
[1740078353009,0.7593,2741.4,2741.1,3.6481]
[1740078353205,0.7593,2741.6,2741.3,3.64786]
[1740078353434,0.7593,2741.6,2741.2,3.64796]
[1740078353744,0.7593,2741.6,2741.0,7.85371038]
[1740078354032,0.7593,2741.6,2741.1,3.64813]
[1740078354727,0.7593,2741.6,2740.8,3.64845]
[1740078354728,0.7867,2741.4,2740.8,3.64845]
[1740078355129,3.6479,2741.3,2740.6,3.64872]
[1740078355298,0.7867,2741.2,2740.7,3.64868]
[1740078355641,4.43475,2741.2,2740.6,3.64872]
[1740078355809,4.43475,2741.2,2740.7,3.64869]
[1740078356332,0.7867,2741.2,2740.6,3.64872]
[1740078356517,0.7867,2741.2,2740.8,3.64856]
[1740078357593,0.7867,2741.2,2741.0,3.64823]
[1740078357799,0.7867,2741.2,2740.9,3.64843]
[1740078357993,0.7867,2741.2,2740.8,3.64852]
[1740078358639,4.4348,2741.2,2740.7,3.64869]
[1740078359653,4.4348,2741.2,2740.6,3.64874]
[1740078359805,4.4348,2741.2,2740.6,7.2975]
[1740078360661,4.4348,2741.2,2740.6,3.64874]
[1740078361016,3.64832,2741.0,2740.5,3.64895]
[1740078361218,3.64818,2741.1,2740.5,3.64895]
[1740078361219,4.43695,2740.9,2740.5,3.64895]
[1740078361537,0.7885,2740.9,2740.5,3.64895]
[1740078361953,0.7885,2740.9,2740.6,3.6487]
[1740078363702,5.36,2741.0,2740.3,0.72151727]
[1740078363933,5.36,2741.0,2740.9,3.64843]
[1740078364335,0.7682,2741.3,2740.9,0.55]
[1740078364521,5.36,2741.6,2741.1,3.64808]
[1740078364838,0.7682,2741.5,2741.2,3.64793]
[1740078365556,0.7682,2741.5,2741.2,3.64797]
[1740078365738,3.64724,2741.8,2741.2,0.807274]
[1740078365739,0.8104,2741.7,2741.2,0.807274]
[1740078366045,0.8104,2741.7,2741.4,3.64767]
[1740078366250,0.8104,2741.7,2741.3,3.6479]
[1740078366562,0.8104,2741.7,2741.3,3.64782]
[1740078366926,0.8104,2741.7,2741.5,3.64756]
[1740078367335,0.8104,2741.7,2741.3,3.64785]
[1740078367647,5.36,2741.8,2741.6,3.64737]
[1740078368127,5.36,2741.8,2741.7,3.64737]
[1740078368638,5.36,2741.8,2741.5,0.814]
[1740078368862,5.36,2741.8,2741.6,3.6475]
[1740078369646,5.36,2741.8,2741.6,3.64744]
[1740078369815,5.36,2741.8,2741.6,4.35429804]
[1740078370354,5.36,2741.8,2741.6,3.64744]
[1740078371551,0.7848,2741.9,2741.6,3.64744]
[1740078376697,6.1158,2742.1,2741.5,0.55]
[1740078376844,0.7558,2742.3,2741.8,0.55]
[1740078377045,0.7831,2742.5,2742.1,3.64682]
[1740078377243,0.7831,2742.5,2742.3,3.64656]
[1740078377589,0.7831,2742.7,2742.3,7.29298]
[1740078377741,0.7831,2742.7,2742.4,3.64642]
[1740078377949,5.36,2742.8,2742.6,3.64617]
[1740078378142,5.36,2742.8,2742.6,3.64609]
[1740078378576,4.08167171,2743.0,2742.6,3.78574938]
[1740078378783,4.08167171,2743.0,2742.9,7.06691038]
[1740078379675,0.7831,2743.6,2743.2,3.64526]
[1740078380450,0.7831,2743.6,2743.3,3.6452]
[1740078380857,5.36,2743.8,2743.4,3.64511]
[1740078381780,6.1783,2743.9,2743.4,7.29014]
[1740078382093,6.1783,2743.9,2743.4,3.64503]
[1740078382274,9.82275,2743.9,2743.4,3.64503]
[1740078383755,9.82275,2743.9,2743.2,7.88466038]
[1740078383756,9.82275,2743.9,2743.2,7.88460038]
[1740078384081,6.1783,2743.9,2743.0,3.64554]
[1740078384261,3.64494,2743.6,2743.0,3.64554]
[1740078384461,3.64494,2743.6,2743.1,3.6454]
[1740078384663,3.64461,2743.8,2743.1,3.6454]
[1740078384865,3.64472,2743.7,2743.1,3.6454]
[1740078385370,3.64492,2743.6,2743.1,3.6455]
[1740078385972,3.64492,2743.6,2743.0,3.64553]
[1740078386156,3.64492,2743.6,2743.0,4.55933504]
[1740078386486,3.64492,2743.6,2743.1,3.64544]
[1740078387159,3.64509,2743.5,2742.9,4.4358]
[1740078387365,3.64525,2743.3,2742.8,3.64581]
[1740078387688,3.64547,2743.2,2742.6,4.010709]
[1740078387873,3.64573,2743.0,2742.4,4.71334]
[1740078388051,3.64573,2743.0,2742.5,3.64623]
[1740078388987,3.64554,2743.1,2742.6,3.64609]
[1740078389189,3.64554,2743.1,2742.6,3.64615]
[1740078389688,5.36,2743.3,2742.9,3.64575]
[1740078391453,5.36,2743.3,2743.0,3.64552]
[1740078391655,5.36,2743.3,2743.0,4.42452]
[1740078391859,5.36,2743.3,2743.1,3.64551]
[1740078392398,3.64499,2743.5,2743.0,4.42452]
[1740078392994,5.36,2743.6,2742.8,4.42482]
[1740078393299,0.8207,2743.3,2742.8,3.64582]
[1740078393499,4.46595,2743.3,2742.8,7.29163]
[1740078393865,4.46595,2743.3,2742.8,3.64581]
[1740078394063,0.8207,2743.3,2742.9,3.64575]
[1740078394694,4.46595,2743.3,2742.8,3.64581]
[1740078394897,4.46595,2743.3,2742.9,3.64573]
[1740078395594,0.8207,2743.3,2742.9,3.64573]
[1740078396096,0.8207,2743.3,2742.8,3.64581]
[1740078396301,4.46596,2743.3,2742.8,3.64581]
[1740078397566,3.64542,2743.2,2742.6,7.61723038]
[1740078397776,3.64542,2743.2,2742.7,3.646]
[1740078398377,3.64542,2743.2,2742.6,8.48335342]
[1740078398590,3.64542,2743.2,2742.8,3.64588]
[1740078400081,3.64542,2743.2,2742.6,8.48335342]
[1740078400280,3.64542,2743.2,2742.7,3.64597]
[1740078400468,3.64542,2743.2,2742.8,3.64588]
[1740078400668,3.64542,2743.2,2742.7,3.64602]
[1740078401101,3.64542,2743.2,2742.6,8.48335342]
[1740078401470,3.64542,2743.2,2742.7,3.64598]
[1740078403101,3.64542,2743.2,2742.8,3.64589]
[1740078403295,9.82595,2743.3,2742.8,3.64589]
[1740078403706,3.64542,2743.2,2742.7,3.64598]
[1740078405008,3.64542,2743.2,2742.6,8.48335342]
[1740078405222,3.64542,2743.2,2742.8,3.6459]
[1740078407274,9.82597,2743.3,2742.8,3.6459]
[1740078407575,13.47132,2743.3,2742.8,3.6459]
[1740078408073,9.82597,2743.3,2742.8,3.6459]
[1740078408916,9.82597,2743.3,2742.7,3.64601]
[1740078409130,3.64543,2743.2,2742.7,3.64601]
[1740078410432,3.64553,2743.1,2742.6,7.61725038]
[1740078411579,4.40801,2743.0,2742.4,3.64631]
[1740078411783,3.6458,2742.9,2742.4,3.64631]
[1740078411979,0.7623,2742.8,2742.4,3.64631]
[1740078412496,0.7623,2742.8,2742.4,7.29265]
[1740078412707,0.7623,2742.8,2742.4,7.29267]
[1740078413024,0.7623,2742.8,2742.4,7.19638]
[1740078413525,0.7623,2742.8,2742.5,3.6463]
[1740078417605,9.78345,2743.0,2742.5,3.6463]
[1740078418013,6.1378,2743.0,2742.6,3.64616]
[1740078418312,24.08150375,2745.6,2742.9,3.97114038]
[1740078418313,0.7966,2743.4,2742.9,3.97114038]
[1740078418517,0.7966,2743.7,2743.3,4.19517]
[1740078419132,0.7966,2743.7,2743.2,0.55]
[1740078419440,3.64484,2743.6,2742.9,7.06682038]
[1740078419605,4.624984,2743.6,2743.0,3.64554]
[1740078419932,0.980144,2743.6,2743.1,3.64543]
[1740078420214,4.44135,2743.7,2743.1,3.64543]
[1740078420438,0.7933,2743.3,2742.8,6.64589]
[1740078420583,4.43857,2743.3,2742.8,6.64589]
[1740078420785,4.43857,2743.3,2742.6,8.23149438]
[1740078421028,3.64543,2743.2,2742.6,3.64616]
[1740078421231,9.79857,2743.3,2742.7,4.19591]
[1740078422114,6.1533,2743.3,2742.9,3.64574]
[1740078422412,5.36,2743.3,2743.2,7.61651038]
[1740078422580,4.39869,2743.7,2743.1,7.29093]
[1740078422786,5.739011,2743.7,2743.1,3.64544]
[1740078423005,4.39869,2743.7,2743.1,3.64544]
[1740078423205,4.39869,2743.7,2743.3,3.64517]
[1740078423206,0.7539,2743.7,2743.3,3.64517]
[1740078424538,0.7539,2743.7,2743.2,4.19535]
[1740078425435,0.7539,2743.7,2743.3,3.64521]
[1740078426632,0.7539,2743.7,2743.2,0.55]
[1740078426835,3.64513,2743.4,2742.7,4.47084]
[1740078427037,3.64548,2743.2,2742.6,3.64616]
[1740078427239,0.7623,2743.1,2742.6,3.64616]
[1740078427443,0.7623,2743.1,2742.6,4.484404]
[1740078427918,3.64582,2742.9,2742.2,5.15535671]
[1740078428126,3.64593,2742.8,2742.2,3.64661]
[1740078428326,3.64615,2742.7,2742.0,7.06802038]
[1740078428506,0.7642,2742.6,2742.0,3.64688]
[1740078428827,4.41045,2742.6,2742.1,0.55]
[1740078429126,3.64633,2742.5,2741.9,3.64708]
[1740078429342,9.77045,2742.6,2742.0,3.64695]
[1740078429504,6.1242,2742.6,2742.1,3.64681]
[1740078429825,6.1242,2742.6,2742.0,7.06809038]
[1740078430533,9.77039,2742.6,2742.0,7.06809038]
[1740078431228,6.1242,2742.6,2742.2,3.6467]
[1740078431390,6.1242,2742.6,2742.4,3.64635]
[1740078431588,0.8155,2742.9,2742.5,4.1963]
[1740078431790,5.36,2743.1,2742.8,3.6459]
[1740078432113,0.8155,2743.2,2742.6,3.64615]
[1740078432327,0.8155,2743.2,2742.7,3.64603]
[1740078432902,6.1755,2743.2,2742.7,3.64603]
[1740078433106,6.1755,2743.2,2742.6,3.42114038]
[1740078433360,6.1755,2743.2,2742.9,3.6457]
[1740078433837,5.36,2743.2,2743.0,3.64563]
[1740078434140,5.36,2743.2,2742.9,7.06684038]
[1740078434141,5.36,2743.2,2743.1,3.64551]
[1740078434725,0.8271,2743.6,2743.1,4.19551]
[1740078434923,0.8271,2743.9,2743.3,0.55]
[1740078435144,0.8271,2743.9,2743.3,4.1952]
[1740078435305,0.8271,2743.9,2743.3,4.19516]
[1740078435509,0.8271,2743.9,2743.5,3.64493]
[1740078437303,5.36,2744.0,2743.5,7.06611038]
[1740078437509,5.36,2744.0,2743.6,0.364493]
[1740078437810,5.36,2744.0,2743.7,3.64458]
[1740078438210,5.36,2744.0,2743.6,0.364493]
[1740078438520,9.0044,2744.0,2743.6,0.364493]
[1740078438710,9.0044,2744.0,2743.5,0.55]
[1740078438908,12.64879,2744.0,2743.5,0.55]
[1740078439142,9.00439,2744.0,2743.5,0.55]
[1740078439343,3.64477,2743.7,2743.2,3.64534]
[1740078439566,3.64477,2743.7,2743.2,4.74305104]
[1740078440210,4.45385,2743.8,2743.2,1.09771104]
[1740078440508,3.64477,2743.7,2743.2,4.74308104]
[1740078440708,3.64477,2743.7,2743.2,1.09771104]
[1740078440709,3.64479,2743.7,2743.2,1.09771104]
[1740078440904,3.64488,2743.6,2743.1,3.64549]
[1740078441105,0.7903,2743.3,2742.8,3.64581]
[1740078441560,0.7903,2743.3,2742.9,3.64576]
[1740078441852,5.36,2743.5,2743.1,3.64545]
[1740078442210,9.00499,2743.5,2743.1,1.07122104]
[1740078442422,9.00499,2743.5,2743.0,3.42114038]
[1740078442619,5.36,2743.5,2742.8,3.42114038]
[1740078442905,5.36,2743.5,2742.9,0.55]
[1740078443142,5.36,2743.5,2743.0,7.29108]
[1740078443536,5.36,2743.5,2743.0,3.64554]
[1740078443841,9.00504,2743.5,2743.0,4.40720804]
[1740078444144,3.64518,2743.4,2742.9,0.55]
[1740078444351,5.36,2743.5,2742.9,0.55]
[1740078444533,9.00497,2743.5,2743.0,3.64557]
[1740078445422,5.36,2743.5,2743.0,3.64557]
[1740078445622,3.645,2743.5,2743.0,3.64557]
[1740078445844,6.1503,2743.6,2743.0,4.77178204]
[1740078446015,9.7952,2743.6,2743.0,4.77178204]
[1740078446209,3.64511,2743.4,2742.9,0.55]
[1740078446411,9.79522,2743.6,2742.7,3.64597]
[1740078446412,0.7503,2743.5,2742.7,3.64597]
[1740078446614,0.7503,2743.2,2742.7,7.29195]
[1740078446937,0.7503,2743.2,2742.8,0.55]
[1740078447344,4.39574,2743.2,2742.8,0.55]
[1740078447507,0.7503,2743.2,2742.8,0.55]
[1740078447712,5.36,2743.6,2743.1,3.6454]
[1740078447713,0.7503,2743.5,2743.1,3.6454]
[1740078447925,0.7503,2743.5,2743.1,3.64551]
[1740078448464,0.7503,2743.5,2743.1,4.374619]
[1740078448644,0.7503,2743.5,2743.2,0.55]
[1740078448856,5.36,2743.6,2743.4,0.55]
[1740078449026,4.39489,2743.8,2743.4,0.55]
[1740078449358,0.7503,2743.8,2743.1,3.42114038]
[1740078449663,3.64492,2743.6,2743.1,3.64548]
[1740078449851,3.64492,2743.6,2743.0,0.55]
[1740078450046,0.8141,2743.4,2743.0,0.55]
[1740078450252,0.8141,2743.4,2743.1,3.64541]
[1740078450447,0.8141,2743.4,2743.0,0.55]
[1740078450757,4.45924,2743.4,2742.9,7.06682038]
[1740078451259,0.8141,2743.4,2743.0,3.64561]
[1740078451626,0.7556,2743.6,2743.1,4.19544]
[1740078451960,4.40052,2743.6,2743.0,4.79898304]
[1740078452261,0.7556,2743.6,2743.1,3.64547]
[1740078452560,0.7556,2743.6,2743.1,3.64543]
[1740078452763,0.7556,2743.6,2743.2,3.64529]
[1740078454552,6.1156,2743.6,2743.2,3.64529]
[1740078455571,6.1156,2743.6,2743.1,3.64543]
[1740078456162,6.1156,2743.6,2743.2,3.64535]
[1740078457043,6.1156,2743.6,2743.3,0.55]
[1740078457244,5.36,2743.6,2743.5,4.19497]
[1740078458841,5.36,2743.6,2743.5,0.55]
[1740078459040,5.36,2743.6,2743.5,4.19497]
[1740078459565,5.36,2743.6,2743.5,7.61611038]
[1740078459774,0.7657,2744.1,2743.5,5.21604392]
[1740078459971,0.7657,2744.1,2743.7,3.64463]
[1740078460269,5.36,2744.2,2744.0,0.55]
[1740078460473,0.7657,2744.6,2744.2,3.64398]
[1740078460766,0.7657,2744.6,2744.1,7.06532038]
[1740078460767,4.40924,2744.6,2744.1,3.42114038]
[1740078460944,0.7657,2744.6,2744.1,7.06529038]
[1740078461264,0.7657,2744.6,2744.2,3.64404]
[1740078461633,0.7657,2744.6,2744.1,3.42114038]
[1740078461833,0.7657,2744.6,2744.2,3.64402]
[1740078462266,0.7657,2744.6,2744.1,7.06531038]
[1740078462471,4.40924,2744.6,2744.1,7.06531038]
[1740078462967,0.7657,2744.6,2744.1,7.06531038]
[1740078463664,4.40929,2744.6,2744.1,7.06531038]
[1740078464170,3.64365,2744.5,2744.1,7.06531038]
[1740078464344,4.40922,2744.6,2744.1,3.42114038]
[1740078464547,4.40922,2744.6,2744.2,3.64404]
[1740078464871,4.40922,2744.6,2744.1,3.42114038]
[1740078465470,4.40922,2744.6,2744.1,7.06528038]
[1740078466939,4.40922,2744.6,2744.2,3.64404]